bitfinex-derivatives/quotes_BTCF0:USTF0_20250814
["timestamp","ask_amount","ask_price","bid_price","bid_amount"]
[1755171364698,0.244274,120860.0,120850.0,1.3332979]
[1755171365105,0.244274,120860.0,120850.0,0.5569379]
[1755171365403,0.160364,120860.0,120850.0,1.3322979]
[1755171365795,0.150414,120860.0,120850.0,1.3322979]
[1755171365996,0.150414,120860.0,120850.0,1.3322179]
[1755171366603,0.150414,120860.0,120850.0,1.43640515]
[1755171369809,0.150414,120860.0,120850.0,1.91362164]
[1755171371200,0.127424,120860.0,120850.0,1.91362164]
[1755171371501,0.0165971,120860.0,120850.0,1.80795439]
[1755171371802,0.0165971,120860.0,120850.0,1.03415439]
[1755171372007,0.02299,120880.0,120870.0,0.0826947]
[1755171372201,0.02299,120880.0,120870.0,0.92071119]
[1755171372402,0.02299,120880.0,120870.0,1.69431119]
[1755171372803,1.9296,120900.0,120890.0,0.082681]
[1755171373006,1.5688,120900.0,120890.0,0.856041]
[1755171373213,1.5688,120900.0,120890.0,0.082681]
[1755171373509,1.52299,120900.0,120890.0,0.443481]
[1755171373698,1.5688,120900.0,120890.0,1.216721]
[1755171374806,1.5698,120900.0,120890.0,1.218721]
[1755171375104,1.697224,120900.0,120890.0,1.218721]
[1755171375508,1.650414,120900.0,120890.0,1.218561]
[1755171375704,1.650414,120900.0,120890.0,0.92469749]
[1755171375903,0.127424,120900.0,120890.0,0.92469749]
[1755171376110,0.127424,120900.0,120890.0,1.69789749]
[1755171376915,0.127424,120900.0,120890.0,1.69785749]
[1755171377099,0.150414,120900.0,120890.0,0.447481]
[1755171377306,0.244274,120900.0,120890.0,1.220601]
[1755171377813,0.244274,120900.0,120890.0,0.447481]
[1755171378004,0.244274,120900.0,120890.0,1.220481]
[1755171378805,0.244274,120900.0,120890.0,0.447481]
[1755171379011,0.244274,120900.0,120890.0,0.860201]
[1755171379214,0.244274,120900.0,120890.0,0.086681]
[1755171379408,0.244274,120900.0,120890.0,0.860121]
[1755171379814,0.72149049,120900.0,120890.0,0.860241]
[1755171380317,0.244274,120900.0,120890.0,0.860241]
[1755171381315,0.80416459,120900.0,120890.0,0.086681]
[1755171381519,1.16576459,120900.0,120890.0,0.004]
[1755171381820,1.33119659,120900.0,120890.0,0.004]
[1755171382110,1.33119659,120900.0,120890.0,0.860161]
[1755171382911,1.08229049,120900.0,120890.0,0.086681]
[1755171383212,0.244274,120900.0,120890.0,0.086681]
[1755171383516,0.244274,120900.0,120890.0,0.860081]
[1755171383714,0.244274,120900.0,120890.0,0.086681]
[1755171384518,0.244274,120900.0,120890.0,0.860001]
[1755171385015,0.247244,120900.0,120890.0,0.086681]
[1755171385219,0.247244,120900.0,120890.0,1.220641]
[1755171385515,0.150414,120900.0,120890.0,1.69777749]
[1755171386520,0.150414,120900.0,120890.0,1.220561]
[1755171387618,1.650414,120900.0,120890.0,1.220561]
[1755171388321,1.685174,120900.0,120890.0,1.220561]
[1755171388620,1.699194,120900.0,120890.0,1.220561]
[1755171389818,1.699194,120900.0,120890.0,1.69777749]
[1755171390424,0.127424,120900.0,120890.0,0.92469749]
[1755171390725,0.151804,120900.0,120890.0,1.69773749]
[1755171391615,0.247664,120900.0,120890.0,0.447481]
[1755171391819,0.247664,120900.0,120890.0,0.086681]
[1755171392027,0.247664,120900.0,120890.0,1.219561]
[1755171396324,0.247664,120900.0,120890.0,0.447481]
[1755171396525,0.247664,120900.0,120890.0,0.857921]
[1755171396731,1.08568049,120900.0,120890.0,0.086681]
[1755171396930,0.72488049,120900.0,120890.0,0.086681]
[1755171397131,0.608464,120900.0,120890.0,0.857881]
[1755171397624,0.247664,120900.0,120890.0,0.857881]
[1755171399124,0.608464,120900.0,120890.0,0.857881]
[1755171399423,0.6911381,120900.0,120890.0,0.857881]
[1755171399625,1.16915459,120900.0,120890.0,0.086681]
[1755171399823,1.33458659,120900.0,120890.0,0.857761]
[1755171400222,1.25191249,120900.0,120890.0,0.857761]
[1755171400423,1.33458659,120900.0,120890.0,0.857761]
[1755171401227,1.33378659,120900.0,120890.0,0.857761]
[1755171402027,0.413096,120900.0,120890.0,0.857761]
[1755171402328,1.33378659,120900.0,120890.0,0.857761]
[1755171402526,1.25111249,120900.0,120890.0,0.857761]
[1755171402733,0.247664,120900.0,120890.0,0.086681]
[1755171403226,0.247664,120900.0,120890.0,0.857161]
[1755171403432,0.247664,120900.0,120890.0,1.217961]
[1755171403632,0.198884,120900.0,120890.0,0.447481]
[1755171403830,0.247664,120900.0,120890.0,1.217961]
[1755171404829,0.247664,120900.0,120890.0,1.217841]
[1755171405133,0.3303381,120900.0,120890.0,0.857761]
[1755171405736,0.6911381,120900.0,120890.0,0.857681]
[1755171407329,0.3303381,120900.0,120890.0,0.857681]
[1755171407527,0.247664,120900.0,120890.0,0.857681]
[1755171408334,0.3303354,120900.0,120890.0,0.857681]
[1755171408731,0.3303354,120900.0,120890.0,0.086681]
[1755171409035,0.6911354,120900.0,120890.0,0.857361]
[1755171411641,0.247664,120900.0,120890.0,0.857361]
[1755171413339,0.247664,120900.0,120890.0,1.217681]
[1755171413741,0.247664,120900.0,120890.0,1.217481]
[1755171413934,0.247664,120900.0,120890.0,0.447481]
[1755171414234,0.247664,120900.0,120890.0,0.086681]
[1755171414442,0.247664,120900.0,120890.0,1.217361]
[1755171415343,0.247664,120900.0,120890.0,0.447481]
[1755171415539,0.247664,120900.0,120890.0,1.217361]
[1755171415836,0.247664,120900.0,120890.0,0.447481]
[1755171416038,0.247664,120900.0,120890.0,1.217241]
[1755171416429,0.247664,120900.0,120890.0,0.447481]
[1755171416633,0.247664,120900.0,120890.0,1.217041]
[1755171417540,0.247664,120900.0,120890.0,0.856241]
[1755171419348,0.247664,120900.0,120890.0,0.086681]
[1755171419645,0.247664,120900.0,120890.0,1.216481]
[1755171419848,0.151804,120900.0,120890.0,1.216481]
[1755171420033,0.151804,120900.0,120890.0,0.447481]
[1755171420342,0.151804,120900.0,120890.0,0.92469749]
[1755171420545,0.151804,120900.0,120890.0,1.216321]
[1755171421648,0.127424,120900.0,120890.0,0.92469749]
[1755171421839,1.627424,120900.0,120890.0,0.92469749]
[1755171422042,1.650954,120900.0,120890.0,1.216001]
[1755171424742,1.685854,120900.0,120890.0,1.216001]
[1755171424942,1.699444,120900.0,120890.0,0.855201]
[1755171425236,1.699444,120900.0,120890.0,0.086681]
[1755171425546,2.25933499,120900.0,120890.0,0.086681]
[1755171425746,2.25933499,120900.0,120890.0,0.854921]
[1755171426550,1.7821185,120900.0,120890.0,0.086681]
[1755171426848,1.699444,120900.0,120890.0,0.854881]
[1755171427242,1.7821166,120900.0,120890.0,0.854881]
[1755171427438,1.7821143,120900.0,120890.0,0.854881]
[1755171429751,1.699444,120900.0,120890.0,0.854881]
[1755171430650,1.7821153,120900.0,120890.0,0.854881]
[1755171431048,1.7821153,120900.0,120890.0,0.086681]
[1755171431240,2.62093179,120900.0,120890.0,0.086681]
[1755171431445,2.62093179,120900.0,120890.0,0.854441]
[1755171434758,2.62093179,120900.0,120890.0,0.086681]
[1755171434953,2.62093179,120900.0,120880.0,0.2480513]
[1755171434954,0.1301883,120890.0,120880.0,0.2480513]
[1755171435159,1.04022479,120890.0,120880.0,1.0154513]
[1755171435457,1.04022479,120890.0,120880.0,0.2480513]
[1755171435657,1.04022479,120890.0,120880.0,1.0154513]
[1755171435856,1.04022479,120890.0,120880.0,0.2480513]
[1755171436058,1.04022479,120890.0,120880.0,1.0154113]
[1755171436355,1.04022479,120890.0,120880.0,0.2500513]
[1755171436556,1.04022479,120890.0,120880.0,1.0203313]
[1755171440058,1.04022479,120890.0,120880.0,0.2530513]
[1755171440262,1.16764879,120890.0,120880.0,1.0201313]
[1755171441356,1.18611186,120890.0,120880.0,0.005]
[1755171442757,1.20828436,120890.0,120880.0,0.005]
[1755171443151,1.18611186,120890.0,120880.0,0.005]
[1755171445255,1.18611186,120890.0,120880.0,0.0876851]
[1755171445461,0.70889537,120890.0,120880.0,0.0876851]
[1755171445857,1.18611186,120890.0,120880.0,0.0876851]
[1755171446160,1.18611186,120890.0,120880.0,0.8612051]
[1755171446359,0.70889537,120890.0,120880.0,0.0940851]
[1755171446760,0.70889537,120890.0,120880.0,0.8612051]
[1755171446962,0.70889537,120890.0,120880.0,0.0940851]
[1755171447167,0.70889537,120890.0,120880.0,0.8612051]
[1755171448668,0.3296323,120890.0,120880.0,0.0940851]
[1755171448962,0.6904323,120890.0,120880.0,0.0940851]
[1755171449162,0.6904323,120890.0,120880.0,0.8612077]
[1755171449364,1.16764879,120890.0,120880.0,0.8612077]
[1755171455774,1.16764879,120890.0,120880.0,0.0876877]
[1755171456172,1.16764879,120890.0,120880.0,0.8547677]
[1755171456973,1.16764879,120890.0,120880.0,0.0876877]
[1755171457174,1.16764879,120890.0,120880.0,0.8547677]
[1755171458970,1.16764879,120890.0,120880.0,0.005]
[1755171459174,1.93468879,120890.0,120880.0,0.005]
[1755171463274,1.16764879,120890.0,120880.0,0.005]
[1755171467575,1.16764879,120890.0,120880.0,0.0876878]
[1755171468575,1.16764879,120890.0,120880.0,0.0940878]
[1755171469569,1.16764879,120890.0,120880.0,0.0876878]
[1755171470783,1.16764879,120890.0,120880.0,0.005]
[1755171471785,1.18988026,120890.0,120880.0,0.005]
[1755171473780,1.06245626,120890.0,120880.0,0.005]
[1755171474180,1.06245626,120890.0,120880.0,0.0876878]
[1755171475086,1.06245626,120890.0,120880.0,0.005]
[1755171476491,1.06245626,120890.0,120880.0,0.0876878]
[1755171476692,1.06245626,120890.0,120880.0,0.005]
[1755171478586,1.06245626,120890.0,120880.0,0.0876878]
[1755171478789,1.06245626,120890.0,120880.0,0.0846878]
[1755171478991,1.06248116,120890.0,120880.0,0.0846878]
[1755171479392,0.1310578,120880.0,120870.0,1.0977763]
[1755171479591,1.04172429,120880.0,120870.0,1.0150819]
[1755171480093,1.04172429,120880.0,120870.0,0.8496931]
[1755171480284,0.04911,120860.0,120850.0,0.2481148]
[1755171480488,1.04173789,120860.0,120850.0,0.9322087]
[1755171480892,1.04173789,120860.0,120850.0,0.9386087]
[1755171481095,1.04173789,120860.0,120850.0,0.1718087]
[1755171481296,1.04173789,120860.0,120850.0,0.9386087]
[1755171482189,1.04173789,120860.0,120850.0,0.9416087]
[1755171482696,1.80849789,120860.0,120850.0,0.003]
[1755171483096,1.04173789,120860.0,120850.0,0.006]
[1755171483297,1.80853789,120860.0,120850.0,0.006]
[1755171484197,1.81659595,120860.0,120850.0,0.006]
[1755171487400,1.81659595,120860.0,120850.0,0.0887083]
[1755171488408,1.04979595,120860.0,120850.0,0.0887083]
[1755171488609,1.33929946,120860.0,120850.0,0.0887083]
[1755171488802,1.81651595,120860.0,120850.0,0.0887083]
[1755171489004,1.81651595,120860.0,120850.0,0.006]
[1755171489404,1.81651595,120860.0,120850.0,0.0887044]
[1755171490697,1.04979595,120860.0,120850.0,0.0887044]
[1755171490902,0.57257946,120860.0,120850.0,0.0887044]
[1755171491104,1.04979595,120860.0,120850.0,0.0887044]
[1755171492609,0.57257946,120860.0,120850.0,0.0951044]
[1755171494811,1.04979595,120860.0,120850.0,0.0951044]
[1755171495515,0.2037214,120860.0,120850.0,0.0951044]
[1755171495713,0.2037214,120860.0,120850.0,0.4599044]
[1755171496014,0.1320875,120860.0,120850.0,0.4607044]
[1755171496208,0.2037175,120860.0,120850.0,1.2265844]
[1755171499517,0.12102,120860.0,120850.0,1.2265844]
[1755171504014,0.10629,120860.0,120850.0,1.2265844]
[1755171505018,0.10629,120860.0,120850.0,1.23494721]
[1755171506225,0.10629,120860.0,120850.0,1.2265844]
[1755171506819,0.1889873,120860.0,120850.0,1.2265844]
[1755171507021,0.2031973,120860.0,120850.0,0.8657844]
[1755171507218,0.2031973,120860.0,120850.0,1.2265844]
[1755171508218,0.1205,120860.0,120850.0,1.2265844]
[1755171508824,0.2031984,120860.0,120850.0,1.2265844]
[1755171509018,0.1205,120860.0,120850.0,1.2265844]
[1755171512725,0.1205,120860.0,120850.0,0.4599044]
[1755171512922,0.10629,120860.0,120850.0,1.2261444]
[1755171513525,0.10629,120860.0,120850.0,0.4599044]
[1755171513721,0.10629,120860.0,120850.0,1.2261044]
[1755171513921,0.1205,120860.0,120850.0,1.2261044]
[1755171514120,0.1205,120860.0,120850.0,0.8653044]
[1755171514322,0.1205,120860.0,120850.0,1.2261044]
[1755171515529,0.10629,120860.0,120850.0,1.2261044]
[1755171517432,0.02354,120860.0,120850.0,1.2261044]
[1755171518521,0.7270358,120880.0,120870.0,0.0890923]
[1755171518724,0.6443458,120880.0,120870.0,0.8551723]
[1755171519027,1.12156229,120880.0,120870.0,0.8551723]
[1755171519726,0.9645495,120880.0,120870.0,0.8561723]
[1755171519923,0.48733301,120880.0,120870.0,0.8611323]
[1755171520118,0.12653301,120880.0,120870.0,0.0950923]
[1755171520323,0.03326301,120880.0,120870.0,0.8610923]
[1755171520829,0.0249,120880.0,120870.0,0.8610923]
[1755171521524,0.0249,120880.0,120870.0,0.8600923]
[1755171521725,0.0249,120880.0,120870.0,0.8610923]
[1755171522227,0.0249,120880.0,120870.0,0.0846923]
[1755171522228,0.67807239,120880.0,120870.0,0.0846923]
[1755171522432,1.03967239,120880.0,120870.0,0.002]
[1755171522928,0.11817,120870.0,120860.0,1.0967014]
[1755171523230,0.67807919,120870.0,120860.0,1.1071014]
[1755171523430,0.2008627,120870.0,120860.0,1.4679014]
[1755171523631,0.11817,120870.0,120860.0,1.4679014]
[1755171523832,0.2008628,120870.0,120860.0,1.4679014]
[1755171524224,0.2008628,120870.0,120860.0,1.4639014]
[1755171524425,1.03887929,120870.0,120860.0,0.9397077]
[1755171524833,1.03887929,120870.0,120860.0,0.9333077]
[1755171525135,1.03887929,120870.0,120860.0,0.9353077]
[1755171525336,1.03887929,120870.0,120860.0,0.9417077]
[1755171526024,1.03887929,120870.0,120860.0,0.9416277]
[1755171527729,1.03887929,120870.0,120860.0,0.9351877]
[1755171528235,1.03887929,120870.0,120860.0,0.8524932]
[1755171528429,1.03967929,120870.0,120860.0,0.004]
[1755171528737,1.05833603,120870.0,120860.0,0.004]
[1755171528923,1.82409603,120870.0,120860.0,0.004]
[1755171529437,1.82409603,120870.0,120860.0,0.0866996]
[1755171530128,1.82409603,120870.0,120860.0,0.004]
[1755171531137,1.82409603,120870.0,120860.0,0.0866996]
[1755171531436,1.82409603,120870.0,120860.0,0.004]
[1755171532137,1.82409603,120870.0,120860.0,0.0866996]
[1755171532332,1.82409603,120870.0,120860.0,0.004]
[1755171537639,1.80543929,120870.0,120860.0,0.004]
[1755171540638,1.80543929,120870.0,120830.0,0.55170645]
[1755171540639,0.0919033,120840.0,120830.0,0.54770405]
[1755171540833,0.67815979,120840.0,120830.0,0.0891168]
[1755171541033,0.67815979,120840.0,120830.0,0.8546801]
[1755171541429,0.26870814,120840.0,120830.0,0.8546801]
[1755171541637,0.26870814,120840.0,120820.0,1.33106945]
[1755171541638,0.2009501,120830.0,120820.0,1.33106945]
[1755171541833,0.67816659,120830.0,120820.0,2.09658945]
[1755171542842,0.67816659,120830.0,120820.0,1.9924022]
[1755171543344,0.67816659,120830.0,120820.0,2.0034022]
[1755171543941,0.67816659,120830.0,120820.0,0.8656422]
[1755171544443,0.68625811,120830.0,120820.0,0.8656422]
[1755171544944,0.20904162,120830.0,120820.0,0.8656422]
[1755171546439,0.75109697,120830.0,120820.0,0.8656422]
[1755171547547,0.75109697,120830.0,120820.0,0.8696422]
[1755171547748,0.75109697,120830.0,120820.0,1.2303222]
[1755171548253,0.26009048,120830.0,120820.0,1.2303222]
[1755171548458,0.27388048,120830.0,120820.0,1.2303222]
[1755171551749,0.27388048,120830.0,120820.0,0.8695222]
[1755171552456,0.27388048,120830.0,120820.0,1.2303222]
[1755171553340,0.13685886,120830.0,120820.0,1.2303222]
[1755171553535,0.09805886,120830.0,120820.0,1.2303222]
[1755171553851,0.02403,120830.0,120820.0,0.4649222]
[1755171554049,0.02403,120830.0,120820.0,1.2302022]
[1755171554250,0.1067433,120840.0,120830.0,0.0931201]
[1755171554549,0.1787233,120840.0,120830.0,0.8584001]
[1755171554744,0.20924567,120840.0,120830.0,0.8584001]
[1755171555146,0.11504567,120840.0,120830.0,0.8584001]
[1755171555449,0.03233237,120840.0,120830.0,1.2231601]
[1755171555650,0.02403,120840.0,120830.0,1.2271601]
[1755171555855,0.09002148,120840.0,120830.0,1.2271601]
[1755171556041,0.02403,120840.0,120830.0,1.2271601]
[1755171556241,0.11518859,120840.0,120830.0,0.8663601]
[1755171556441,0.20938859,120840.0,120830.0,0.1011201]
[1755171556650,0.20938859,120840.0,120830.0,0.8623601]
[1755171556950,0.68660508,120840.0,120830.0,0.8623601]
[1755171557849,0.68660508,120840.0,120830.0,0.1011201]
[1755171558051,0.20938859,120840.0,120830.0,0.8663201]
[1755171558247,0.20938859,120840.0,120830.0,0.8623201]
[1755171560148,0.20938859,120840.0,120830.0,0.0971201]
[1755171560349,0.20938859,120840.0,120830.0,0.8622401]
[1755171560545,0.75372807,120840.0,120830.0,0.0971201]
[1755171560852,1.11452807,120840.0,120830.0,0.8558001]
[1755171561259,1.11452807,120840.0,120830.0,0.8558026]
[1755171562054,1.11452807,120840.0,120830.0,0.8622026]
[1755171569552,0.63731158,120840.0,120830.0,0.0971226]
[1755171569852,1.11452807,120840.0,120830.0,0.8619626]
[1755171570657,1.11452807,120840.0,120830.0,0.0971226]
[1755171570857,1.11452807,120840.0,120830.0,0.8619626]
[1755171573057,1.11452807,120840.0,120830.0,0.0971226]
[1755171573256,1.11452807,120840.0,120830.0,0.8619226]
[1755171574660,0.63731158,120840.0,120830.0,0.0971226]
[1755171574959,0.63731158,120840.0,120830.0,0.8658426]
[1755171575160,0.63731158,120840.0,120830.0,0.1011226]
[1755171575360,0.63731158,120840.0,120830.0,0.8658426]
[1755171575660,0.63731158,120840.0,120830.0,0.1011226]
[1755171575960,0.63731158,120840.0,120830.0,0.8658426]
[1755171576755,0.63731158,120840.0,120830.0,0.8658026]
[1755171576953,0.59110158,120840.0,120830.0,0.8658026]
[1755171577257,0.59110158,120840.0,120830.0,0.1011226]
[1755171577454,0.63859158,120840.0,120830.0,0.8618026]
[1755171577858,1.11580807,120840.0,120830.0,0.8618026]
[1755171578656,0.63549807,120840.0,120830.0,0.0971226]
[1755171578862,0.7042821,120870.0,120860.0,0.0890992]
[1755171579059,1.18149859,120870.0,120860.0,0.0064]
[1755171579366,1.23717852,120870.0,120860.0,0.0826992]
[1755171580863,1.23717852,120870.0,120860.0,0.8472992]
[1755171581064,1.23717852,120870.0,120860.0,0.8472592]
[1755171581458,1.30461561,120870.0,120860.0,0.8482592]
[1755171581956,1.30461561,120870.0,120860.0,0.86060658]
[1755171582157,1.30461561,120870.0,120860.0,0.86160658]
[1755171584565,1.30461561,120870.0,120860.0,0.86144658]
[1755171584866,1.30461561,120870.0,120860.0,0.01434738]
[1755171585060,1.30461561,120870.0,120860.0,0.002]
[1755171585654,1.30461561,120870.0,120860.0,0.0846996]
[1755171586367,1.30461561,120870.0,120860.0,0.002]
[1755171587069,0.82739912,120870.0,120860.0,0.002]
[1755171587366,1.30461561,120870.0,120860.0,0.002]
[1755171588069,1.30461561,120870.0,120860.0,0.0846997]
[1755171588270,1.30461561,120870.0,120860.0,0.01464832]
[1755171588664,0.1306065,120850.0,120840.0,0.2481332]
[1755171588866,1.04110299,120850.0,120840.0,0.2481332]
[1755171589171,1.04110299,120850.0,120840.0,1.0123732]
[1755171589870,1.04110299,120850.0,120840.0,0.0827093]
[1755171590171,1.04110299,120850.0,120840.0,0.8499093]
[1755171590469,1.04110299,120850.0,120840.0,0.1010493]
[1755171590664,1.04110299,120850.0,120840.0,0.8652493]
[1755171590970,1.04110299,120850.0,120840.0,0.8682493]
[1755171591168,1.09207247,120850.0,120840.0,0.8682493]
[1755171592766,1.09207247,120850.0,120840.0,0.8868993]
[1755171593169,0.23923598,120850.0,120840.0,0.1226993]
[1755171593370,0.25405598,120850.0,120840.0,0.1226993]
[1755171593664,0.05096948,120850.0,120840.0,0.8876193]
[1755171593867,0.13367598,120850.0,120840.0,0.8876193]
[1755171594067,0.15667598,120850.0,120840.0,0.8868193]
[1755171594269,0.25326598,120850.0,120840.0,0.8868193]
[1755171595474,0.25326598,120850.0,120840.0,1.2475793]
[1755171597361,0.17055948,120850.0,120840.0,1.2475793]
[1755171597867,0.25326598,120850.0,120840.0,1.2475793]
[1755171598973,0.25326598,120850.0,120840.0,1.2474993]
[1755171599774,0.17055948,120850.0,120840.0,1.2474993]
[1755171599968,0.12323948,120850.0,120840.0,1.2474993]
[1755171600167,0.05096948,120850.0,120840.0,1.2474993]
[1755171600367,0.05096948,120850.0,120840.0,1.2474193]
[1755171600770,0.05096948,120850.0,120840.0,1.73796525]
[1755171600976,0.05096948,120850.0,120840.0,1.73716525]
[1755171601472,0.05096948,120850.0,120840.0,1.25994876]
[1755171601970,0.05096948,120850.0,120840.0,1.25990876]
[1755171603176,0.05096948,120850.0,120840.0,1.26070876]
[1755171603378,0.05096948,120850.0,120840.0,1.26062876]
[1755171603573,0.00872298,120850.0,120840.0,2.0075365]
[1755171603778,8e-08,120850.0,120840.0,2.2075365]
[1755171603979,8e-08,120850.0,120840.0,2.10334925]
[1755171604172,8e-08,120850.0,120840.0,1.63435637]
[1755171604478,8e-08,120850.0,120840.0,2.11157286]
[1755171608482,8e-08,120850.0,120840.0,2.11155104]
[1755171611486,8e-08,120850.0,120840.0,2.11075104]
[1755171613788,0.02300008,120850.0,120840.0,2.11075104]
[1755171613975,8e-08,120850.0,120840.0,0.85108455]
[1755171614181,0.07172008,120850.0,120840.0,0.47735694]
[1755171614482,0.11904008,120850.0,120840.0,1.24075694]
[1755171616084,0.02300008,120850.0,120840.0,1.24075694]
[1755171620294,0.02300008,120850.0,120840.0,0.47735694]
[1755171620592,0.02300008,120850.0,120840.0,1.24055694]
[1755171626192,8e-08,120850.0,120840.0,1.24055694]
[1755171626384,8e-08,120850.0,120840.0,1.71761343]
[1755171626989,8e-08,120850.0,120840.0,0.95457343]
[1755171627184,8e-08,120850.0,120840.0,0.95537343]
[1755171627392,8e-08,120850.0,120840.0,1.88387743]
[1755171628591,8e-08,120850.0,120840.0,1.88307743]
[1755171629197,8e-08,120850.0,120840.0,1.88299124]
[1755171630690,8e-08,120850.0,120840.0,1.88291124]
[1755171630886,8e-08,120850.0,120840.0,1.11999124]
[1755171631087,8e-08,120850.0,120840.0,1.88283124]
[1755171633594,8e-08,120850.0,120840.0,1.88275124]
[1755171633801,8e-08,120850.0,120840.0,1.94573062]
[1755171633999,8e-08,120850.0,120840.0,1.46851413]
[1755171634201,8e-08,120850.0,120840.0,2.23127413]
[1755171634595,8e-08,120850.0,120840.0,2.08355124]
[1755171635504,8e-08,120850.0,120840.0,2.16630187]
[1755171635804,8e-08,120850.0,120840.0,2.16626187]
[1755171636393,8e-08,120850.0,120840.0,2.16546187]
[1755171636999,8e-08,120850.0,120840.0,2.26951297]
[1755171637896,8e-08,120850.0,120840.0,1.50673562]
[1755171638201,8e-08,120850.0,120840.0,1.30673562]
[1755171638398,8e-08,120850.0,120840.0,1.98654499]
[1755171638794,0.03181,120870.0,120850.0,0.1220155]
[1755171639000,0.07987,120880.0,120870.0,0.121996]
[1755171639201,0.09483,120880.0,120870.0,1.2577201]
[1755171640506,0.09483,120880.0,120870.0,1.2346501]
[1755171640700,0.11982,120880.0,120870.0,1.2346501]
[1755171641403,0.11982,120880.0,120870.0,1.2577201]
[1755171641608,0.11982,120880.0,120870.0,1.2576401]
[1755171641903,0.17078948,120880.0,120870.0,1.2576401]
[1755171642204,0.17378948,120880.0,120870.0,1.2576401]
[1755171643515,0.12701948,120880.0,120870.0,1.26584626]
[1755171644104,0.12701948,120880.0,120870.0,1.2576401]
[1755171644403,0.17378948,120880.0,120870.0,1.2576001]
[1755171644608,0.17378948,120880.0,120870.0,0.4720901]
[1755171644810,0.17378948,120880.0,120870.0,1.2345301]
[1755171645211,0.65100597,120880.0,120870.0,1.2345301]
[1755171645614,0.17378948,120880.0,120870.0,1.24254515]
[1755171645906,0.25647558,120880.0,120870.0,0.8574501]
[1755171646106,0.17378948,120880.0,120870.0,0.8574501]
[1755171646306,0.73369207,120880.0,120870.0,0.8574101]
[1755171646502,0.73449207,120880.0,120870.0,0.0950501]
[1755171646705,0.73449207,120880.0,120870.0,0.8574101]
[1755171647417,0.73369197,120880.0,120870.0,0.8574101]
[1755171648315,0.73369197,120880.0,120870.0,0.8736501]
[1755171649114,0.65100597,120880.0,120870.0,0.8736501]
[1755171649309,0.73369187,120880.0,120870.0,0.8736501]
[1755171649512,0.17378948,120880.0,120870.0,0.8736501]
[1755171649803,0.17378948,120880.0,120870.0,0.13433484]
[1755171650010,0.17378948,120880.0,120870.0,0.89665484]
[1755171650203,0.17378948,120880.0,120870.0,1.25745484]
[1755171650512,0.17378948,120880.0,120870.0,0.89665484]
[1755171652515,0.17378948,120880.0,120870.0,0.884316]
[1755171652813,0.17378948,120880.0,120870.0,0.89665817]
[1755171654119,0.25647528,120880.0,120870.0,0.89665817]
[1755171654319,0.17378948,120880.0,120870.0,0.89665817]
[1755171654618,0.17378948,120880.0,120870.0,1.25745817]
[1755171655016,0.17378948,120880.0,120870.0,1.25737817]
[1755171655316,0.12701948,120880.0,120870.0,1.25737817]
[1755171655520,0.10840948,120880.0,120870.0,1.2573427]
[1755171655821,0.08657948,120880.0,120870.0,1.2573427]
[1755171656414,0.05396948,120880.0,120870.0,1.73455919]
[1755171656613,0.05396948,120880.0,120870.0,0.97235919]
[1755171656812,0.05396948,120880.0,120870.0,1.73455919]
[1755171657017,0.05396948,120880.0,120870.0,1.2573427]
[1755171657213,0.05396948,120880.0,120870.0,1.32376102]
[1755171657419,0.05396948,120880.0,120870.0,0.56156102]
[1755171657722,0.05396948,120880.0,120870.0,1.32376102]
[1755171659820,0.05396948,120880.0,120870.0,1.2573427]
[1755171660317,0.07678948,120880.0,120870.0,0.4951427]
[1755171660521,0.16940948,120880.0,120870.0,1.2572227]
[1755171660725,0.16940948,120880.0,120870.0,1.2580527]
[1755171660917,0.16940948,120880.0,120870.0,0.4959727]
[1755171661114,0.07678948,120880.0,120870.0,0.4959727]
[1755171661318,0.07678948,120880.0,120870.0,0.97318919]
[1755171661319,0.05396948,120880.0,120870.0,0.97318919]
[1755171661617,0.05396948,120880.0,120870.0,1.73526919]
[1755171662221,0.05396948,120880.0,120870.0,1.80119136]
[1755171663219,0.05396948,120880.0,120870.0,1.80119768]
[1755171663722,0.05396948,120880.0,120870.0,1.80115768]
[1755171663923,0.05396948,120880.0,120870.0,1.32394119]
[1755171668327,0.05396948,120880.0,120870.0,1.80115768]
[1755171669826,0.08607948,120880.0,120870.0,0.56190119]
[1755171670130,0.16940948,120880.0,120870.0,1.32374119]
[1755171670831,0.16840948,120880.0,120870.0,1.32374119]
[1755171671030,0.16840948,120880.0,120870.0,0.49597902]
[1755171671331,0.16740948,120880.0,120870.0,1.25777902]
[1755171671924,0.05196948,120880.0,120870.0,1.25777902]
[1755171672118,0.07478948,120880.0,120870.0,1.25773902]
[1755171672423,0.05196948,120880.0,120870.0,1.73495551]
[1755171674822,0.05196948,120880.0,120870.0,0.97319551]
[1755171675332,0.05196948,120880.0,120870.0,1.73486955]
[1755171675530,0.05196948,120880.0,120870.0,0.97318955]
[1755171675730,0.05196948,120880.0,120870.0,1.73486955]
[1755171675927,0.05196948,120880.0,120870.0,1.79991199]
[1755171676737,0.05196948,120880.0,120870.0,1.80091199]
[1755171676927,0.05096948,120880.0,120870.0,1.80091199]
[1755171678136,0.05096948,120880.0,120870.0,1.78856493]
[1755171678438,0.00023538,120880.0,120870.0,1.80083]
[1755171678642,0.00023538,120880.0,120870.0,1.03923]
[1755171678935,0.00023538,120880.0,120870.0,1.80083]
[1755171682235,0.02305538,120880.0,120870.0,1.80083]
[1755171683441,8e-08,120880.0,120870.0,1.204694]
[1755171683640,8e-08,120880.0,120870.0,1.973814]
[1755171683837,8e-08,120880.0,120870.0,1.974214]
[1755171684034,8e-08,120880.0,120870.0,1.49699751]
[1755171684333,8e-08,120880.0,120870.0,2.0782651]
[1755171685138,8e-08,120880.0,120870.0,1.3087451]
[1755171685336,8e-08,120880.0,120870.0,2.07875572]
[1755171685738,8e-08,120880.0,120870.0,1.91329172]
[1755171686534,8e-08,120880.0,120870.0,1.80924062]
[1755171688435,8e-08,120880.0,120870.0,1.03924062]
[1755171688633,0.06590153,120920.0,120900.0,0.1653355]
[1755171688942,0.09342,120920.0,120910.0,1.4174995]
[1755171689140,0.09342,120920.0,120910.0,0.66053519]
[1755171689340,0.09342,120920.0,120910.0,1.42985519]
[1755171689841,0.09542,120920.0,120910.0,1.42985519]
[1755171690038,0.09942,120920.0,120910.0,1.42985519]
[1755171690238,0.09942,120920.0,120910.0,1.43823856]
[1755171690634,0.12265,120920.0,120910.0,1.43823856]
[1755171691047,0.12265,120920.0,120910.0,1.42985519]
[1755171691537,0.11865,120920.0,120910.0,1.42985519]
[1755171691736,0.17361948,120920.0,120910.0,1.42985519]
[1755171692138,0.16961948,120920.0,120910.0,1.42985519]